bitfinex/quotes_SOLUSD_20250219
["timestamp","ask_amount","ask_price","bid_price","bid_amount"]
[1739966135595,91.06,174.33,174.32,5.7365]
[1739966135788,91.06,174.33,174.3,30.67749532]
[1739966136183,91.06,174.33,174.3,9.188]
[1739966136381,91.06,174.33,174.3,3.4509]
[1739966136576,91.06,174.33,174.3,9.1879]
[1739966136779,91.06,174.33,174.3,29.1879]
[1739966136984,91.06,174.33,174.3,9.1879]
[1739966137181,91.06,174.33,174.3,42.50519985]
[1739966138009,91.06,174.33,174.31,13.31729985]
[1739966138215,91.06,174.33,174.32,13.31729985]
[1739966138387,91.06,174.33,174.31,13.31729985]
[1739966138783,91.06,174.33,174.32,33.31729985]
[1739966139193,0.03,174.35,174.32,33.31729985]
[1739966139395,0.03,174.35,174.34,13.31729985]
[1739966140910,0.0001,174.35,174.34,26.72914838]
[1739966141204,0.0001,174.35,174.34,13.31729985]
[1739966141407,0.0001,174.35,174.34,19.05319985]
[1739966144092,0.0001,174.36,174.35,13.41184853]
[1739966144411,0.0001,174.36,174.35,16.46609985]
[1739966145013,0.0001,174.36,174.34,5.7359]
[1739966145511,0.0001,174.36,174.34,19.05319985]
[1739966146512,0.0001,174.36,174.35,13.31729985]
[1739966147819,0.0001,174.36,174.35,19.05279985]
[1739966152010,0.0001,174.36,174.35,32.46464838]
[1739966152215,0.0001,174.36,174.35,113.36464838]
[1739966153915,0.0001,174.36,174.35,113.42764838]
[1739966154426,0.0001,174.36,174.35,100.01579985]
[1739966156400,0.0001,174.36,174.35,113.42764838]
[1739966157520,0.03,174.39,174.38,20.0]
[1739966157719,0.03,174.4,174.39,29.88124838]
[1739966157916,0.03,174.4,174.39,35.61544838]
[1739966158327,0.03,174.4,174.39,22.20359985]
[1739966158724,0.03,174.4,174.39,22.18474719]
[1739966159025,0.03,174.4,174.39,17.39730489]
[1739966159721,0.03,174.4,174.39,8.51100489]
[1739966160019,0.03,174.4,174.37,8.51100489]
[1739966160425,0.03,174.4,174.38,8.51100489]
[1739966162227,0.03,174.4,174.38,14.24550489]
[1739966162632,0.03,174.4,174.38,14.24941421]
[1739966163016,0.03,174.4,174.38,19.03905445]
[1739966163330,0.03,174.4,174.36,19.03955445]
[1739966165312,0.03,174.4,174.37,13.30455445]
[1739966166724,0.03,174.4,174.37,19.03925445]
[1739966166921,0.03,174.4,174.38,13.30455445]
[1739966167612,0.03,174.4,174.39,13.30455445]
[1739966168934,0.03,174.4,174.39,19.03875445]
[1739966170741,0.03,174.46,174.42,20.0]
[1739966170913,0.03,174.46,174.43,19.03745445]
[1739966171115,0.0001,174.47,174.46,21.0]
[1739966171318,125.5495479,174.57,174.5,21.0]
[1739966171545,125.5495479,174.57,174.55,13.30455445]
[1739966172242,125.5495479,174.57,174.55,94.20455445]
[1739966172243,4.97e-05,174.56,174.55,94.20455445]
[1739966172741,4.97e-05,174.56,174.55,97.07431932]
[1739966173037,4.97e-05,174.56,174.55,102.80331932]
[1739966173426,0.15436381,174.6,174.55,102.80331932]
[1739966173625,0.15436381,174.6,174.56,13.30455445]
[1739966173819,13.45891826,174.6,174.53,13.30455445]
[1739966174028,13.30455445,174.59,174.53,13.30455445]
[1739966174338,26.7637713,174.6,174.53,19.03415445]
[1739966175313,13.30455445,174.59,174.53,19.03415445]
[1739966175524,13.30455445,174.59,174.5,13.30455445]
[1739966175525,13.30455445,174.57,174.5,13.30455445]
[1739966175723,97.07904941,174.56,174.5,19.03515445]
[1739966175927,13.30455445,174.55,174.49,13.30455445]
[1739966176132,1.07454011,174.54,174.49,13.30455445]
[1739966176534,14.37909415,174.55,174.49,13.30455445]
[1739966176837,1.0745397,174.55,174.5,13.30455445]
[1739966177830,14.37909415,174.55,174.49,13.30455445]
[1739966178225,13.30455445,174.51,174.43,5.7329]
[1739966178430,13.30455445,174.51,174.44,13.30455445]
[1739966178431,97.07939911,174.5,174.44,13.30455445]
[1739966178626,83.77484466,174.5,174.45,13.30455445]
[1739966178834,83.77484466,174.5,174.44,13.30455445]
[1739966179026,83.77484466,174.5,174.45,13.30455445]
[1739966179225,97.07939911,174.5,174.44,13.30455445]
[1739966179430,97.07939911,174.5,174.43,13.30455445]
[1739966179431,230.50455445,174.49,174.43,13.30455445]
[1739966179632,217.2,174.49,174.44,13.30455445]
[1739966180037,217.2,174.49,174.45,13.30455445]
[1739966180749,1.07489739,174.48,174.44,13.30455445]
[1739966181320,217.2,174.49,174.46,13.30455445]
[1739966182230,217.2,174.49,174.45,13.30455445]
[1739966183440,217.2,174.49,174.45,19.03675445]
[1739966184148,82.7,174.49,174.45,19.03675445]
[1739966184537,82.7,174.49,174.48,13.30455445]
[1739966185666,82.7,174.49,174.46,13.30455445]
[1739966186551,82.7,174.49,174.46,19.03645445]
[1739966186756,82.7,174.49,174.47,13.30455445]
[1739966186934,82.7,174.49,174.48,13.30455445]
[1739966187247,82.73,174.53,174.48,13.30455445]
[1739966187433,83.8046492,174.53,174.48,13.30455445]
[1739966187629,97.10920365,174.53,174.47,13.30455445]
[1739966188451,83.8046492,174.53,174.47,13.30455445]
[1739966188755,83.8046492,174.53,174.47,19.03595445]
[1739966189353,83.8046492,174.53,174.48,13.30455445]
[1739966189560,83.8046492,174.53,174.49,13.30455445]
[1739966189746,82.73,174.53,174.49,13.30455445]
[1739966191156,82.73,174.53,174.49,19.03525445]
[1739966191531,82.73,174.53,174.5,13.30455445]
[1739966192333,82.73,174.53,174.51,13.30455445]
[1739966192748,82.73,174.53,174.51,19.03465445]
[1739966194145,82.73,174.53,174.5,13.30455445]
[1739966194351,82.73,174.53,174.5,19.03515445]
[1739966194745,82.73,174.53,174.49,13.30455445]
[1739966195559,82.73,174.53,174.48,13.30455445]
[1739966196255,1.07461984,174.52,174.48,19.03575445]
[1739966196637,83.8046631,174.53,174.48,19.03575445]
[1739966197555,82.73,174.53,174.49,13.30455445]
[1739966197735,82.73,174.53,174.5,13.30455445]
[1739966198557,82.73,174.53,174.49,13.30455445]
[1739966199556,1.07460658,174.52,174.48,13.30455445]
[1739966200441,1.07460658,174.52,174.47,5.7315]
[1739966200442,1.07460658,174.52,174.46,19.03645445]
[1739966200642,100.46455445,174.51,174.45,13.30455445]
[1739966200840,1.07488449,174.5,174.45,13.30455445]
[1739966201853,1.07488449,174.5,174.46,13.30455445]
[1739966202036,100.26058504,174.51,174.46,13.30455445]
[1739966203849,100.26058504,174.51,174.46,19.03615445]
[1739966204543,113.56513949,174.51,174.44,19.03685445]
[1739966204739,82.7,174.5,174.44,19.03685445]
[1739966205063,1.07490138,174.49,174.44,19.03685445]
[1739966205275,83.77486063,174.5,174.45,13.30455445]
[1739966205565,83.77486063,174.5,174.45,13.36755445]
[1739966205742,82.7,174.5,174.46,19.03645445]
[1739966205944,82.7,174.5,174.47,13.30455445]
[1739966207956,82.7,174.5,174.47,19.03595445]
[1739966208170,82.7,174.5,174.48,13.30455445]
[1739966208360,82.7,174.5,174.47,5.7314]
[1739966208361,82.7,174.5,174.49,13.30455445]
[1739966209870,82.7,174.5,174.49,19.03545445]
[1739966210166,82.7,174.5,174.49,13.30455445]
[1739966210459,82.7,174.5,174.48,13.30455445]
[1739966210674,82.7,174.5,174.46,13.30455445]
[1739966210841,1.07477831,174.49,174.45,13.36755445]
[1739966211042,82.7,174.5,174.47,13.30455445]
[1739966211565,82.7,174.5,174.45,5.7952]
[1739966211765,82.7,174.5,174.46,13.30455445]
[1739966212360,82.7,174.5,174.47,13.30455445]
[1739966213067,82.7,174.5,174.46,13.30455445]
[1739966213367,1.07484774,174.49,174.46,13.30455445]
[1739966213660,83.77484843,174.5,174.46,13.30455445]
[1739966214364,83.77484843,174.5,174.45,0.063]
[1739966214565,13.30455445,174.46,174.45,0.063]
[1739966214747,97.07964276,174.47,174.45,0.063]
[1739966215861,13.30455445,174.46,174.45,0.063]
[1739966216466,147.80455445,174.46,174.45,0.063]
[1739966219378,134.5,174.46,174.45,0.063]
[1739966219870,147.80455445,174.46,174.45,0.063]
[1739966220062,134.5,174.46,174.45,0.063]
[1739966220667,147.80455445,174.46,174.45,0.063]
[1739966221659,134.5,174.46,174.45,0.063]
[1739966222762,167.94830298,174.46,174.45,0.063]
[1739966222981,162.21640298,174.46,174.45,0.063]
[1739966223495,167.94830298,174.46,174.45,0.063]
[1739966223778,34.44830298,174.46,174.45,0.063]
[1739966223992,14.37986106,174.46,174.45,0.063]
[1739966224783,1.07530661,174.46,174.45,0.063]
[1739966225962,1.07499169,174.48,174.45,13.36755445]
[1739966226161,1.07491003,174.49,174.46,13.30455445]
[1739966227470,134.5,174.52,174.48,13.30455445]
[1739966228982,1.07471314,174.51,174.46,13.30455445]
[1739966229187,14.37926759,174.51,174.45,13.36755445]
[1739966229392,96.00455445,174.5,174.45,19.09975445]
[1739966229568,96.00455445,174.5,174.48,13.30455445]
[1739966229569,82.7,174.5,174.48,13.30455445]
[1739966230185,82.7,174.5,174.49,13.30455445]
[1739966230683,0.03,174.53,174.49,13.30455445]
[1739966232762,0.03,174.53,174.49,19.03545445]
[1739966232966,0.03,174.53,174.49,13.30455445]
[1739966235298,0.03,174.53,174.47,13.30455445]
[1739966235299,1.07457754,174.52,174.47,13.30455445]
[1739966235602,0.03,174.53,174.48,13.30455445]
[1739966236602,0.03,174.53,174.49,13.30455445]
[1739966237097,0.03,174.53,174.49,19.03545445]
[1739966237297,0.03,174.53,174.5,13.30455445]
[1739966237500,0.03,174.53,174.49,19.03545445]
[1739966237982,0.03,174.53,174.48,19.03575445]
[1739966238501,14.40915162,174.53,174.47,13.30455445]
[1739966238808,14.40915162,174.53,174.47,19.03615445]
[1739966239884,14.40915162,174.53,174.47,13.30455445]
[1739966240092,13.30455445,174.52,174.46,33.30455445]
[1739966240300,1.0747637,174.51,174.46,33.30455445]
[1739966240612,83.7747637,174.51,174.46,33.30455445]
[1739966240790,97.07931815,174.51,174.46,20.0]
[1739966240992,97.07931815,174.51,174.46,25.7316]
[1739966241181,83.7747637,174.51,174.46,39.03615445]
[1739966241492,82.7,174.51,174.48,0.063]
[1739966241700,82.7,174.51,174.48,13.36755445]
[1739966242074,0.03,174.53,174.49,13.30455445]
[1739966243095,0.03,174.53,174.5,5.7306]
[1739966244200,0.03,174.53,174.49,19.03545445]
[1739966244896,0.03,174.53,174.5,13.30455445]
[1739966247707,0.03,174.53,174.49,13.30455445]
[1739966248780,0.03,174.53,174.49,19.03545445]
[1739966249008,0.03,174.53,174.48,13.36755445]
[1739966249188,0.03,174.53,174.48,19.09875445]
[1739966251281,1.10457388,174.53,174.48,13.36755445]
[1739966251487,14.40912833,174.53,174.48,0.063]
[1739966251693,14.40912833,174.53,174.48,5.7942]
[1739966251895,1.10457388,174.53,174.48,19.09875445]
[1739966252504,83.80457388,174.53,174.48,19.09875445]
[1739966252804,231.60912833,174.53,174.48,0.063]
[1739966253008,13.30455445,174.5,174.48,0.063]
[1739966253219,14.37935167,174.5,174.48,0.063]
[1739966253515,13.30455445,174.51,174.48,0.063]
[1739966253702,1.07478957,174.5,174.48,0.063]
[1739966253902,217.23,174.53,174.49,13.30455445]
[1739966254199,13.30455445,174.52,174.48,0.063]
[1739966254404,14.37912866,174.52,174.48,0.063]
[1739966256492,230.53455445,174.53,174.48,0.063]
[1739966256692,217.23,174.53,174.48,13.36755445]
[1739966257597,217.23,174.53,174.48,19.09855445]
[1739966257807,217.23,174.53,174.48,13.36755445]
[1739966258006,1.07460004,174.52,174.48,13.36755445]
[1739966258207,217.23,174.53,174.48,13.36755445]
[1739966258599,230.53455445,174.53,174.48,0.063]
[1739966258896,1.07464554,174.52,174.48,0.063]
[1739966259091,230.53455445,174.53,174.48,0.063]
[1739966259092,217.23,174.53,174.48,0.063]
[1739966259297,217.23,174.53,174.49,13.30455445]
[1739966259700,217.23,174.53,174.49,19.03535445]
[1739966259901,217.23,174.53,174.48,13.36755445]
[1739966260304,217.23,174.53,174.48,19.09875445]
[1739966260504,217.23,174.53,174.49,13.30455445]
[1739966260735,217.23,174.53,174.49,13.287689]
[1739966261004,217.23,174.53,174.49,8.50414181]
[1739966261809,217.23,174.53,174.49,14.23504181]
[1739966262215,217.23,174.53,174.48,0.063]
[1739966262419,217.23,174.53,174.48,5.7941]
[1739966262611,217.23,174.53,174.48,14.29824181]
[1739966264321,82.73,174.53,174.48,14.29824181]
[1739966264520,82.73,174.53,174.48,0.063]
[1739966264824,9.57880328,174.52,174.48,0.063]
[1739966265823,9.57880328,174.52,174.48,5.7943]
[1739966266006,1.07466147,174.52,174.48,5.7943]
[1739966266420,1.07466147,174.52,174.48,0.063]
[1739966266829,83.80467674,174.53,174.48,0.063]
[1739966267300,82.73,174.53,174.49,8.50414181]
[1739966267504,82.73,174.53,174.48,8.56714181]
[1739966267699,1.07453872,174.52,174.48,0.063]
[1739966267924,83.8046851,174.53,174.48,0.063]
[1739966268120,8.50414181,174.52,174.48,0.063]
[1739966268304,1.07478442,174.51,174.48,0.063]
[1739966268505,82.73,174.53,174.49,8.50414181]
[1739966268712,82.7,174.52,174.48,0.063]
[1739966268925,1.07465757,174.51,174.48,0.063]
[1739966270643,83.77473799,174.52,174.48,5.7943]
[1739966271318,83.77473799,174.52,174.48,0.063]
[1739966272922,92.2788798,174.52,174.48,0.063]
[1739966273122,82.7,174.51,174.48,0.063]
[1739966273424,1.07482096,174.5,174.48,0.063]
[1739966274404,91.20414181,174.49,174.48,0.063]
[1739966274810,27.64689034,174.49,174.48,0.063]
[1739966275226,28.64689034,174.49,174.48,0.063]
[1739966275425,29.64689034,174.49,174.48,0.063]
[1739966276213,25.2183,174.46,174.45,0.063]
[1739966276410,69.65503336,174.46,174.45,0.063]
[1739966276715,75.38693336,174.46,174.45,0.063]
[1739966276935,78.22950727,174.46,174.45,0.063]
[1739966277435,1.0,174.39,174.38,0.063]
[1739966277616,14.03995075,174.39,174.38,0.063]
[1739966278311,28.45179928,174.39,174.38,0.063]
[1739966278635,21.14644853,174.38,174.35,0.063]
[1739966278817,8.52415882,174.36,174.35,0.063]
[1739966279216,13.31896827,174.36,174.35,0.063]
[1739966281427,37.8009168,174.36,174.35,0.063]
[1739966282018,31.0657168,174.36,174.35,0.063]
[1739966282232,30.0657168,174.36,174.35,0.063]
[1739966282432,31.0657168,174.36,174.35,0.063]
[1739966282931,16.65386827,174.36,174.35,0.063]
[1739966283250,13.31896827,174.36,174.35,0.063]
[1739966283417,1.07580978,174.37,174.35,0.063]
[1739966283618,5.53580978,174.37,174.35,0.063]
[1739966283819,18.85477805,174.37,174.35,0.063]
[1739966284642,26.7308168,174.36,174.35,0.063]
[1739966285733,28.7308168,174.36,174.35,0.063]
[1739966286138,34.4660168,174.36,174.35,0.063]
[1739966286632,2.0,174.31,174.3,0.063]
[1739966286834,54.26722023,174.31,174.3,0.063]
[1739966287223,52.26722023,174.31,174.3,0.063]
[1739966287441,32.26722023,174.31,174.3,0.063]
[1739966289041,39.00412023,174.31,174.3,0.063]
[1739966289245,40.00412023,174.31,174.3,0.063]
[1739966291243,39.00412023,174.31,174.3,0.063]
[1739966291448,33.26722023,174.31,174.3,0.063]
[1739966291654,39.00412023,174.31,174.3,0.063]
[1739966293231,40.00412023,174.31,174.3,0.063]
[1739966296155,39.00412023,174.31,174.3,0.063]
[1739966297239,34.54412023,174.31,174.3,0.063]
[1739966297555,33.26722023,174.31,174.3,0.063]
[1739966297734,28.80722023,174.31,174.3,0.063]
[1739966298053,5.5361715,174.32,174.3,0.063]
[1739966298238,4.46,174.32,174.3,0.063]
[1739966298431,4.46,174.32,174.3,13.38196827]
[1739966298633,4.46,174.32,174.31,13.31896827]
[1739966298829,91.04,174.34,174.31,13.31896827]
[1739966299046,91.04,174.34,174.32,13.31896827]
[1739966299450,82.7,174.33,174.32,19.05546827]
[1739966300043,91.04,174.34,174.33,3.419]
[1739966300240,91.04,174.34,174.33,16.73796827]
[1739966300557,0.03,174.35,174.33,16.73796827]
[1739966300774,0.03,174.35,174.34,33.31896827]
[1739966301058,0.03,174.38,174.34,33.31896827]
[1739966301243,0.03,174.38,174.37,13.31896827]
[1739966301435,0.03,174.38,174.37,19.05386827]
[1739966302345,0.03,174.38,174.37,13.31896827]
[1739966302547,0.03,174.38,174.36,13.31896827]
[1739966302747,0.03,174.38,174.33,22.47406827]
[1739966302944,82.7,174.37,174.33,9.1551]
[1739966303251,82.7,174.37,174.33,3.419]
[1739966303555,231.59458404,174.36,174.3,13.38196827]
[1739966303853,13.31896827,174.35,174.3,5.8001]
[1739966304061,1.07576821,174.34,174.3,5.8001]
[1739966304264,82.7,174.33,174.3,5.8001]
[1739966304635,231.59480408,174.32,174.3,0.063]
[1739966304957,230.51896827,174.32,174.3,0.063]
[1739966305159,1.07593429,174.31,174.3,0.063]
[1739966306339,217.2,174.32,174.3,0.063]
[1739966306756,217.2,174.32,174.3,21.3707766]
[1739966307857,217.2,174.32,174.3,27.1078766]
[1739966308163,4.46,174.34,174.31,21.3077766]
[1739966308367,4.46,174.34,174.3,5.8001]
[1739966308666,4.46,174.34,174.31,21.3077766]
[1739966310263,4.46,174.34,174.31,27.0445766]
[1739966310457,4.46,174.34,174.32,21.3077766]
[1739966310882,4.46,174.34,174.31,27.0445766]
[1739966311168,4.46,174.34,174.3,0.063]
[1739966311169,26.84348068,174.34,174.3,0.063]
[1739966311357,5.53570408,174.34,174.3,0.063]
[1739966311843,82.7,174.33,174.3,0.063]
[1739966313162,239.58359415,174.32,174.3,0.063]
[1739966313485,21.3077766,174.31,174.3,0.063]
[1739966314244,238.5077766,174.32,174.3,0.063]
[1739966314444,217.2,174.32,174.3,0.063]
[1739966316771,22.38364657,174.31,174.3,0.063]
[1739966317665,156.88364657,174.31,174.3,0.063]
[1739966317870,134.5,174.31,174.3,0.063]
[1739966318056,155.8077766,174.31,174.3,0.063]
[1739966318641,134.5,174.31,174.3,0.063]
[1739966320970,155.8077766,174.31,174.3,0.063]
[1739966321650,134.5,174.31,174.3,0.063]
[1739966321853,34.71962513,174.31,174.3,0.063]
[1739966322154,36.79587394,174.31,174.3,0.063]
[1739966322355,42.53277394,174.31,174.3,0.063]
[1739966322753,43.53277394,174.31,174.3,0.063]
[1739966324585,15.41184853,174.3,174.29,0.063]
[1739966324769,36.71962513,174.3,174.29,0.063]
[1739966324949,15.41184853,174.29,174.28,0.0001]
[1739966325154,37.7961082,174.29,174.28,0.0001]
[1739966325852,22.0,174.26,174.25,0.063]
[1739966326050,65.4830707,174.26,174.25,0.0001]
[1739966326479,78.5244707,174.26,174.25,0.0001]
[1739966326677,78.56479223,174.26,174.25,0.0001]
[1739966326865,70.5574608,174.26,174.25,0.0001]
[1739966327682,73.41353186,174.26,174.25,0.0001]
[1739966328069,26.75261523,174.21,174.18,0.063]
[1739966328388,119.90949047,174.21,174.18,0.063]
[1739966328561,119.91376247,174.21,174.18,0.063]
[1739966328760,128.92974968,174.21,174.2,0.0001]
[1739966328980,127.85287444,174.21,174.2,0.0001]
[1739966329986,133.59297444,174.21,174.2,0.0001]
[1739966333665,132.59297444,174.21,174.2,0.0001]
[1739966333860,133.59297444,174.21,174.2,0.0001]
[1739966334183,136.05297444,174.21,174.2,0.0001]
[1739966335801,91.08,174.21,174.2,0.0001]
[1739966335986,96.61662305,174.21,174.2,0.0001]
[1739966336360,91.08,174.21,174.2,0.0001]
[1739966336784,225.58,174.21,174.2,0.0001]
[1739966337683,225.58,174.21,174.2,21.36112591]
[1739966338486,225.58,174.21,174.2,0.0001]
[1739966339975,91.08,174.21,174.2,0.0001]
[1739966346504,4.46,174.23,174.2,0.0001]
[1739966347193,5.53644858,174.23,174.2,0.0001]
[1739966347395,4.46,174.23,174.2,0.0001]
[1739966349273,10.1995,174.23,174.2,0.0001]
[1739966349478,1.07644382,174.22,174.2,0.0001]
[1739966350394,217.2,174.21,174.2,0.0001]
[1739966352284,217.2,174.21,174.2,14.41067932]
[1739966352489,217.2,174.21,174.2,17.56897932]
[1739966352991,0.063,174.25,174.2,17.56897932]
[1739966353197,0.063,174.25,174.24,14.41057932]
[1739966353585,0.063,174.25,174.24,20.14977932]
[1739966356587,0.063,174.25,174.24,14.41057932]
[1739966357409,0.063,174.25,174.24,20.14977932]
[1739966362518,0.063,174.25,174.23,14.41057932]
[1739966363314,0.063,174.25,174.24,14.41057932]
[1739966364514,0.063,174.25,174.23,14.41057932]
[1739966365882,0.063,174.25,174.2,14.41067932]
[1739966365883,82.763,174.25,174.2,14.41067932]
[1739966366087,82.763,174.25,174.2,0.0001]
[1739966366309,82.763,174.25,174.2,5.7405]
[1739966366711,82.763,174.25,174.2,20.15107932]
[1739966366912,82.763,174.25,174.2,14.41067932]
[1739966367090,82.763,174.25,174.23,14.41057932]
[1739966367788,82.763,174.25,174.24,14.41057932]
[1739966368001,0.063,174.25,174.24,14.41057932]
[1739966368601,0.063,174.25,174.24,20.14977932]
[1739966378498,0.063,174.25,174.24,14.41057932]
[1739966379723,0.063,174.25,174.22,14.41057932]
[1739966379925,0.063,174.25,174.21,14.41057932]
[1739966380105,0.063,174.25,174.2,5.7405]
[1739966380106,0.063,174.25,174.24,14.41057932]
[1739966381718,0.063,174.25,174.24,20.14977932]
[1739966383125,0.063,174.25,174.23,20.15007932]
[1739966383514,0.063,174.25,174.24,14.41057932]
[1739966385832,0.063,174.25,174.24,20.14977932]
[1739966386399,0.063,174.25,174.21,14.41057932]
[1739966386708,0.063,174.25,174.2,20.15107932]
[1739966386906,82.7,174.24,174.2,20.15107932]
[1739966387114,82.7,174.24,174.2,14.41067932]
[1739966387316,82.7,174.24,174.2,0.0001]
[1739966389422,82.7,174.24,174.21,14.41057932]
[1739966390127,82.7,174.24,174.23,14.41057932]
[1739966391629,82.7,174.24,174.22,14.41057932]
[1739966392008,82.7,174.23,174.2,14.41067932]
[1739966392533,82.7,174.23,174.21,14.41057932]
[1739966393534,82.7,174.23,174.22,14.41057932]
[1739966393832,82.7,174.23,174.21,14.41057932]
[1739966396639,82.7,174.23,174.21,20.15037932]
[1739966397137,82.7,174.23,174.22,14.41057932]
[1739966397724,82.7,174.23,174.22,20.15037932]
[1739966398218,82.7,174.23,174.22,14.41057932]
[1739966398430,82.7,174.23,174.21,14.41057932]
[1739966401133,82.7,174.23,174.2,20.15107932]
[1739966401443,82.7,174.23,174.21,14.41057932]
[1739966401639,82.7,174.23,174.22,14.41057932]
[1739966402528,0.063,174.25,174.22,14.41057932]
[1739966402715,0.063,174.25,174.24,14.41057932]
[1739966402916,0.063,174.25,174.2,0.0001]
[1739966403122,48.4786,174.24,174.21,14.41057932]
[1739966403724,48.4786,174.24,174.23,14.41057932]
[1739966404350,0.063,174.25,174.23,14.41057932]
[1739966404539,0.063,174.25,174.24,14.41057932]
[1739966404842,0.063,174.25,174.23,9.21406575]
[1739966405142,0.063,174.25,174.2,0.0001]
[1739966405439,48.4786,174.24,174.21,9.21406575]
[1739966406030,48.4786,174.24,174.22,9.21406575]
[1739966406235,48.4786,174.24,174.23,9.21406575]
[1739966407431,48.4786,174.24,174.22,9.21406575]
[1739966407627,48.4786,174.24,174.21,9.21406575]
[1739966408126,48.4786,174.24,174.2,9.21416575]
[1739966408746,48.4786,174.24,174.21,9.21406575]
[1739966409243,48.4786,174.24,174.23,9.21406575]
[1739966409946,0.063,174.25,174.24,5.7392]
[1739966410124,0.063,174.25,174.24,14.95326575]
[1739966411241,139.5386,174.33,174.24,32.76951428]
[1739966411428,139.5386,174.33,174.31,9.21406575]
[1739966411958,1.07567488,174.32,174.27,9.21406575]
[1739966412156,48.4786,174.31,174.26,9.21406575]
[1739966412336,57.69266575,174.31,174.25,9.21406575]
[1739966412663,48.4786,174.31,174.29,9.21406575]
[1739966412830,48.4786,174.31,174.3,9.21406575]
[1739966413028,48.4786,174.31,174.29,9.21406575]
[1739966413226,48.4786,174.31,174.28,9.21406575]
[1739966413441,48.4786,174.31,174.3,9.21406575]
[1739966413962,225.56,174.33,174.3,9.21406575]
[1739966413963,91.06,174.33,174.3,9.21406575]
[1739966414148,91.06,174.33,174.32,9.21406575]
[1739966414530,0.03,174.35,174.32,9.21406575]
[1739966414849,0.03,174.35,174.34,9.21406575]
[1739966416043,0.03,174.38,174.34,29.28966575]
[1739966416249,0.03,174.38,174.37,9.21406575]
[1739966416756,0.03,174.38,174.37,14.37100156]
[1739966416965,0.03,174.38,174.37,17.17765297]
[1739966417257,0.03,174.38,174.34,80.9]
[1739966417467,0.03,174.38,174.37,14.37100156]
[1739966418465,0.03,174.38,174.37,20.10590156]
[1739966419539,0.063,174.41,174.4,20.0]
[1739966419862,0.063,174.41,174.4,34.37100156]
[1739966420021,0.063,174.41,174.4,40.10490156]
[1739966420224,0.063,174.41,174.4,14.37100156]
[1739966420434,0.063,174.41,174.39,14.37100156]
[1739966420641,0.063,174.41,174.34,2.81699533]
[1739966420876,14.43400156,174.41,174.35,14.37100156]
[1739966421047,197.34960156,174.4,174.34,14.37100156]
[1739966421249,14.37100156,174.39,174.33,14.37100156]
[1739966421451,197.34960156,174.4,174.34,14.37100156]
[1739966421759,182.9786,174.4,174.37,14.37100156]
[1739966421936,48.4786,174.4,174.39,14.37100156]
[1739966422153,48.4786,174.4,174.38,14.37100156]
[1739966422561,0.03,174.38,174.37,14.37100156]
[1739966424080,0.03,174.38,174.35,14.37100156]
[1739966424374,48.4786,174.37,174.34,0.063]
[1739966424682,14.37100156,174.36,174.34,0.063]
[1739966424873,197.34960156,174.36,174.34,0.063]
[1739966426258,182.9786,174.36,174.34,0.063]
[1739966426454,48.4786,174.35,174.34,0.063]
[1739966427775,27.78285009,174.35,174.34,0.063]
[1739966427971,27.78285009,174.35,174.21,63.9352395]
[1739966427972,5.7378,174.28,174.21,63.9352395]
[1739966428274,14.37100156,174.25,174.21,0.03]
[1739966428455,231.57100156,174.24,174.21,0.03]
[1739966428652,14.37100156,174.22,174.21,0.03]
[1739966428979,29.85938086,174.22,174.21,0.03]
[1739966429466,28.85938086,174.22,174.21,0.03]
[1739966430068,34.59918086,174.22,174.21,0.03]
[1739966430572,13.41184853,174.21,174.2,0.0001]
[1739966430783,32.24285009,174.21,174.2,0.0001]
[1739966431151,18.83100156,174.21,174.2,0.0001]